bitfinex/quotes_BTCUSD_20250109
["timestamp","ask_amount","ask_price","bid_price","bid_amount"]
[1736461534110,8.51e-05,92172.0,92169.0,0.216992]
[1736461534311,8.51e-05,92172.0,92168.0,0.05960034]
[1736461534517,8.51e-05,92172.0,92169.0,0.216992]
[1736461534811,8.51e-05,92172.0,92168.0,0.05960034]
[1736461536300,8.51e-05,92172.0,92170.0,0.0793]
[1736461536517,8.51e-05,92172.0,92171.0,0.216987]
[1736461538361,8.51e-05,92172.0,92171.0,0.223987]
[1736461538974,8.51e-05,92172.0,92171.0,0.21498698]
[1736461539193,8.51e-05,92172.0,92171.0,0.21698698]
[1736461539716,8.51e-05,92172.0,92171.0,0.2467745]
[1736461540463,8.51e-05,92172.0,92171.0,0.21698698]
[1736461544250,8.51e-05,92172.0,92171.0,0.20798696]
[1736461545665,8.51e-05,92172.0,92171.0,0.38738672]
[1736461545866,8.5e-05,92177.0,92172.0,0.0004149]
[1736461546450,8.5e-05,92177.0,92172.0,0.23251466]
[1736461546675,8.5e-05,92177.0,92172.0,0.32546406]
[1736461547104,8.5e-05,92177.0,92172.0,0.32746406]
[1736461547305,8.5e-05,92177.0,92172.0,0.33446406]
[1736461547513,8.5e-05,92177.0,92172.0,0.33246406]
[1736461547726,8.5e-05,92177.0,92172.0,0.32546406]
[1736461548109,8.5e-05,92177.0,92172.0,0.33446406]
[1736461548318,8.5e-05,92177.0,92172.0,0.32746406]
[1736461548526,8.5e-05,92177.0,92172.0,0.32546406]
[1736461549062,8.5e-05,92177.0,92172.0,0.31646404]
[1736461549264,8.5e-05,92177.0,92172.0,0.46646404]
[1736461549707,8.5e-05,92177.0,92172.0,0.49478114]
[1736461549892,8.5e-05,92177.0,92172.0,0.49678114]
[1736461550294,8.5e-05,92177.0,92172.0,0.49478114]
[1736461550507,8.5e-05,92177.0,92172.0,0.39383174]
[1736461550728,8.5e-05,92177.0,92172.0,0.39683174]
[1736461550979,8.5e-05,92177.0,92172.0,0.40583174]
[1736461551620,0.053,92201.0,92190.0,0.00012633]
[1736461551856,0.08921074,92200.0,92190.0,0.00012633]
[1736461552505,0.17842148,92200.0,92190.0,0.00012633]
[1736461552846,0.21715883,92197.0,92190.0,0.00012633]
[1736461553029,0.00023283,92197.0,92190.0,0.00012633]
[1736461553233,0.00123283,92197.0,92190.0,0.00012633]
[1736461553950,0.00123283,92197.0,92186.0,0.20807731]
[1736461554168,0.00123283,92197.0,92190.0,0.216942]
[1736461554348,0.00123283,92197.0,92182.0,0.0806]
[1736461554541,0.08921074,92192.0,92182.0,0.0806]
[1736461554763,0.08921074,92192.0,92191.0,0.21694]
[1736461554981,0.08921074,92201.0,92195.0,0.21693]
[1736461555181,0.08921074,92205.0,92195.0,0.21693]
[1736461556740,0.001,92197.0,92195.0,0.21693]
[1736461556939,0.24955831,92207.0,92195.0,0.21693]
[1736461557092,0.17842148,92205.0,92195.0,0.21693]
[1736461557305,0.08921074,92205.0,92195.0,0.21693]
[1736461557927,0.09221074,92205.0,92195.0,0.21693]
[1736461558944,0.09221074,92205.0,92195.0,0.20792998]
[1736461559147,0.18142148,92205.0,92195.0,0.20792998]
[1736461559305,0.09221074,92205.0,92195.0,0.20792998]
[1736461560324,0.09221074,92205.0,92195.0,0.25513698]
[1736461560501,0.09221074,92205.0,92195.0,0.47206698]
[1736461560652,0.09221074,92205.0,92195.0,0.25513698]
[1736461560858,0.09221074,92205.0,92195.0,0.20792998]
[1736461562087,0.09221074,92205.0,92196.0,0.296729]
[1736461562397,0.003,92205.0,92196.0,0.296729]
[1736461563144,0.08919584,92210.0,92196.0,0.296729]
[1736461563344,0.003,92205.0,92196.0,0.296729]
[1736461564072,0.003,92205.0,92196.0,0.28772898]
[1736461564270,0.08921074,92206.0,92196.0,0.28772898]
[1736461564444,0.08921074,92206.0,92196.0,0.28872898]
[1736461564817,0.08921074,92206.0,92196.0,0.0808]
[1736461566235,0.003,92205.0,92196.0,0.297728]
[1736461566442,0.003,92205.0,92196.0,0.296728]
[1736461566652,0.08921074,92206.0,92196.0,0.296728]
[1736461566972,0.09221074,92206.0,92196.0,0.296728]
[1736461568503,0.09221074,92206.0,92196.0,0.0798]
[1736461569275,0.09221074,92206.0,92188.0,0.0472]
[1736461569276,0.1,92200.0,92178.0,0.048]
[1736461569489,0.1,92200.0,92173.0,7.906e-05]
[1736461569490,0.08921074,92185.0,92173.0,0.00022689]
[1736461569698,0.08921074,92185.0,92173.0,0.21712983]
[1736461570313,0.08921074,92185.0,92173.0,0.00014783]
[1736461570689,0.216957,92184.0,92173.0,0.00014783]
[1736461570872,0.216957,92184.0,92173.0,0.00314783]
[1736461571714,0.216957,92184.0,92173.0,0.00014783]
[1736461571919,0.216957,92184.0,92173.0,0.00414783]
[1736461572322,0.216957,92184.0,92173.0,0.00514783]
[1736461572571,0.216957,92184.0,92173.0,0.00522689]
[1736461572827,0.08921074,92185.0,92173.0,0.00522689]
[1736461572828,0.15,92182.0,92173.0,0.00422689]
[1736461573064,0.15,92180.0,92173.0,0.00422689]
[1736461573296,0.216979,92175.0,92173.0,0.00122689]
[1736461573482,0.10429976,92174.0,92173.0,0.00122689]
[1736461573753,0.10429976,92174.0,92173.0,0.00022689]
[1736461574191,0.08921074,92171.0,92161.0,0.20823587]
[1736461574425,0.08921074,92171.0,92159.0,0.0484]
[1736461574637,0.21699,92170.0,92159.0,0.0484]
[1736461575095,0.10219376,92171.0,92160.0,0.217013]
[1736461576274,0.08921074,92170.0,92160.0,0.217013]
[1736461576731,0.08921074,92170.0,92160.0,0.434026]
[1736461577713,0.08921074,92170.0,92164.0,0.217002]
[1736461577909,0.08921074,92170.0,92161.0,0.217011]
[1736461578137,0.08921074,92170.0,92165.0,0.217]
[1736461578340,0.10429976,92174.0,92165.0,0.217]
[1736461578938,0.10429976,92174.0,92165.0,0.20799998]
[1736461579386,0.10429976,92174.0,92161.0,0.217011]
[1736461579603,0.10529976,92174.0,92161.0,0.217011]
[1736461580027,0.10529976,92174.0,92165.0,0.217]
[1736461580259,0.10429976,92174.0,92165.0,0.217]
[1736461581112,0.08921074,92175.0,92165.0,0.217]
[1736461581331,0.21698,92174.0,92165.0,0.217]
[1736461581522,0.21798,92174.0,92165.0,0.217]
[1736461582569,0.21698,92174.0,92165.0,0.217]
[1736461583019,0.09021074,92175.0,92165.0,0.217]
[1736461583275,0.08921074,92175.0,92165.0,0.217]
[1736461584005,0.08921074,92175.0,92165.0,0.20799998]
[1736461584505,0.433906,92186.0,92172.0,0.216985]
[1736461584755,0.001,92174.0,92172.0,0.216985]
[1736461585275,0.15,92179.0,92167.0,0.216997]
[1736461585537,0.15,92177.0,92166.0,0.077]
[1736461585775,0.15,92175.0,92166.0,0.077]
[1736461586025,0.151,92175.0,92166.0,0.077]
[1736461586532,0.21698,92174.0,92166.0,0.077]
[1736461587370,0.21698,92174.0,92172.0,0.001]
[1736461587568,0.15,92175.0,92166.0,0.077]
[1736461588951,0.21698,92174.0,92166.0,0.06799998]
[1736461590434,0.15,92171.0,92166.0,0.06799998]
[1736461591222,0.15,92169.0,92160.0,0.217013]
[1736461591903,0.15,92169.0,92166.0,0.001]
[1736461591904,0.216995,92168.0,92166.0,0.001]
[1736461592256,0.15,92166.0,92145.0,0.0815]
[1736461592908,0.15,92166.0,92148.0,0.217041]
[1736461592909,0.15,92162.0,92148.0,0.217041]
[1736461593329,0.15,92162.0,92158.0,0.0816702]
[1736461593738,0.15,92162.0,92160.0,0.002]
[1736461593941,0.15,92164.0,92159.0,0.0493]
[1736461594144,0.15,92164.0,92159.0,0.04029998]
[1736461595275,0.151,92164.0,92159.0,0.04029998]
[1736461595925,0.15,92162.0,92158.0,0.0001702]
[1736461599072,0.15,92162.0,92156.0,0.04047018]
[1736461604365,0.15,92162.0,92156.0,0.03147016]
[1736461605067,0.15,92164.0,92156.0,0.03147016]
[1736461606985,0.151,92164.0,92156.0,0.03147016]
[1736461608946,0.151,92164.0,92156.0,0.02247014]
[1736461610786,0.15,92162.0,92156.0,0.02247014]
[1736461613981,0.15,92162.0,92156.0,0.01347012]
[1736461617423,0.14518979,92162.0,92156.0,0.01347012]
[1736461619096,0.14518979,92162.0,92156.0,0.0044701]
[1736461619591,0.217002,92165.0,92156.0,0.0044701]
[1736461620763,0.217006,92163.0,92156.0,0.0044701]
[1736461621318,0.218002,92165.0,92156.0,0.0044701]
[1736461621553,0.001,92165.0,92157.0,0.19619677]
[1736461621750,0.001,92165.0,92158.0,0.0833]
[1736461622114,0.08921074,92170.0,92169.0,0.0833]
[1736461622313,0.17842148,92180.0,92169.0,0.0833]
[1736461622577,0.08921074,92180.0,92169.0,0.0833]
[1736461622726,0.216946,92189.0,92175.0,0.0499]
[1736461622727,0.216955,92185.0,92175.0,0.0499]
[1736461622936,0.08921074,92185.0,92176.0,0.0833]
[1736461623163,0.08921074,92185.0,92177.0,0.216973]
[1736461623522,0.08921074,92185.0,92177.0,0.433946]
[1736461623731,0.08921074,92190.0,92178.0,0.0833]
[1736461623932,0.08921074,92190.0,92178.0,0.07429998]
[1736461624214,0.001,92185.0,92178.0,0.07429998]
[1736461624972,0.001,92185.0,92179.0,0.216969]
[1736461625154,0.001,92185.0,92179.0,0.433938]
[1736461625354,0.08921074,92190.0,92179.0,0.2870507]
[1736461625562,0.08921074,92200.0,92184.0,0.0499]
[1736461625758,0.0011477,92186.0,92184.0,0.15419976]
[1736461626193,0.0001477,92186.0,92184.0,0.15419976]
[1736461626370,0.0001477,92186.0,92185.0,0.216955]
[1736461626745,0.0001477,92186.0,92185.0,0.32125476]
[1736461627225,0.0001477,92186.0,92185.0,0.39985476]
[1736461628202,0.0001477,92186.0,92185.0,0.40685476]
[1736461628405,8.51e-05,92201.0,92200.0,0.344319]
[1736461628516,8.51e-05,92201.0,92200.0,0.44861876]
[1736461628720,8.51e-05,92201.0,92200.0,0.49348064]
[1736461628921,8.51e-05,92201.0,92200.0,0.48448062]
[1736461629130,8.51e-05,92201.0,92200.0,0.43961874]
[1736461629998,8.51e-05,92201.0,92200.0,0.44161874]
[1736461630459,8.51e-05,92201.0,92200.0,0.44561874]
[1736461630669,8.51e-05,92201.0,92200.0,0.43961874]
[1736461630883,8.51e-05,92201.0,92200.0,0.44161874]
[1736461631011,8.51e-05,92201.0,92200.0,0.44761874]
[1736461631224,8.51e-05,92201.0,92200.0,0.52948257]
[1736461631867,8.51e-05,92201.0,92200.0,0.52348257]
[1736461632067,8.51e-05,92201.0,92200.0,0.52148257]
[1736461632275,8.51e-05,92201.0,92200.0,0.53248257]
[1736461632780,8.51e-05,92201.0,92200.0,0.52948257]
[1736461633185,8.51e-05,92201.0,92200.0,0.53348257]
[1736461633545,8.51e-05,92201.0,92200.0,0.52548257]
[1736461633945,8.51e-05,92201.0,92200.0,0.52548255]
[1736461634347,8.51e-05,92201.0,92200.0,0.52148255]
[1736461634800,8.51e-05,92211.0,92200.0,0.39408255]
[1736461635016,8.51e-05,92211.0,92210.0,0.341896]
[1736461635205,8.51e-05,92211.0,92210.0,0.44619576]
[1736461636521,8.51e-05,92211.0,92210.0,0.44919576]
[1736461636982,8.51e-05,92211.0,92210.0,0.44619576]
[1736461637386,8.51e-05,92211.0,92210.0,0.44919576]
[1736461637648,8.51e-05,92211.0,92210.0,0.52480614]
[1736461637908,8.51e-05,92211.0,92210.0,0.137]
[1736461638166,8.51e-05,92211.0,92210.0,0.012]
[1736461638646,8.51e-05,92211.0,92210.0,0.003]
[1736461638917,8.51e-05,92211.0,92210.0,0.009]
[1736461639090,8.51e-05,92211.0,92210.0,0.003]
[1736461639543,8.51e-05,92211.0,92202.0,0.21691398]
[1736461640173,8.51e-05,92211.0,92202.0,0.43382798]
[1736461640376,8.51e-05,92211.0,92204.0,0.21691]
[1736461640496,0.0010851,92211.0,92204.0,0.21691]
[1736461640721,8.51e-05,92211.0,92204.0,0.21691]
[1736461640958,0.0010851,92211.0,92204.0,0.21691]
[1736461641375,8.51e-05,92211.0,92204.0,0.21691]
[1736461643532,8.51e-05,92211.0,92204.0,0.43382]
[1736461643928,8.51e-05,92211.0,92204.0,0.42481998]
[1736461644354,8.51e-05,92211.0,92208.0,0.2169]
[1736461644935,0.0020851,92211.0,92208.0,0.2169]
[1736461646104,8.51e-05,92211.0,92208.0,0.2169]
[1736461647466,0.0010851,92211.0,92208.0,0.2169]
[1736461647671,8.51e-05,92211.0,92208.0,0.2169]
[1736461649040,8.51e-05,92211.0,92208.0,0.20789998]
[1736461649467,0.216875,92219.0,92208.0,0.20789998]
[1736461649667,0.00014778,92218.0,92208.0,0.20789998]
[1736461651360,0.00314778,92218.0,92208.0,0.20789998]
[1736461652353,0.00314778,92218.0,92209.0,0.041581]
[1736461652827,0.00314778,92218.0,92208.0,0.20789998]
[1736461653029,0.00414778,92218.0,92212.0,0.21689]
[1736461653277,0.00314778,92218.0,92216.0,0.216881]
[1736461653480,0.00314778,92218.0,92212.0,0.21689]
[1736461653481,0.00014778,92218.0,92212.0,0.21689]
[1736461653940,0.00314778,92218.0,92212.0,0.21689]
[1736461654142,0.00014778,92218.0,92212.0,0.20788998]
[1736461654448,0.00014778,92218.0,92209.0,0.299396]
[1736461654713,0.00114778,92218.0,92209.0,0.299396]
[1736461655294,0.00014778,92218.0,92209.0,0.299396]
[1736461655877,0.00014778,92218.0,92209.0,0.0825]
[1736461656085,0.00014778,92218.0,92214.0,0.1317]
[1736461656329,0.00014778,92218.0,92215.0,0.10429976]
[1736461656974,0.216834,92237.0,92215.0,0.10429976]
[1736461657199,0.2173265,92237.0,92215.0,0.10429976]
[1736461658113,0.2172232,92237.0,92215.0,0.10429976]
[1736461658345,0.216835,92236.0,92222.0,0.216867]
[1736461659038,0.216835,92236.0,92222.0,0.20786698]
[1736461659764,0.217835,92236.0,92222.0,0.20786698]
[1736461660177,0.43467,92236.0,92222.0,0.20786698]
[1736461660313,0.43767,92236.0,92222.0,0.20786698]
[1736461660751,0.220835,92236.0,92222.0,0.20786698]
[1736461664436,0.220835,92236.0,92222.0,0.19886696]
[1736461664819,0.220835,92236.0,92226.0,0.216857]
[1736461665016,0.004,92236.0,92228.0,0.216853]
[1736461665390,0.004,92236.0,92227.0,0.1234724]
[1736461665606,0.004,92236.0,92227.0,0.0819]
[1736461665843,0.003,92236.0,92228.0,0.216853]
[1736461666715,0.0004925,92237.0,92229.0,0.216851]
[1736461667127,0.004,92236.0,92229.0,0.216851]
[1736461667333,0.001,92236.0,92230.0,0.0452]
[1736461667509,0.216823,92241.0,92230.0,0.0452]
[1736461667814,0.004,92236.0,92230.0,0.0452]
[1736461668019,0.001,92236.0,92231.0,0.216846]
[1736461668293,0.216823,92241.0,92232.0,0.0798]
[1736461668679,0.001,92236.0,92232.0,0.0798]
[1736461669118,0.001,92236.0,92232.0,0.07079998]
[1736461669467,0.004,92236.0,92232.0,0.07079998]
[1736461669677,0.001,92236.0,92232.0,0.07079998]
[1736461669873,0.001,92236.0,92232.0,0.08614555]
[1736461670080,0.003,92236.0,92232.0,0.07079998]
[1736461670279,0.001,92236.0,92232.0,0.07079998]
[1736461670683,0.001,92236.0,92233.0,0.216842]
[1736461670901,0.21682,92243.0,92232.0,0.07079998]
[1736461671466,0.216811,92246.0,92232.0,0.50448498]
[1736461671696,0.21695866,92246.0,92234.0,0.216839]
[1736461671898,0.21695866,92246.0,92233.0,0.0549685]
[1736461672517,0.21695866,92246.0,92232.0,0.28764198]
[1736461672925,0.003,92243.0,92239.0,0.216826]
[1736461673140,0.00014766,92246.0,92239.0,0.216826]
[1736461673345,0.00214766,92246.0,92239.0,0.216826]
[1736461673560,0.00614766,92246.0,92239.0,0.216826]
[1736461673762,0.00014766,92246.0,92240.0,0.0433668]
[1736461673993,0.00014766,92246.0,92243.0,0.20781798]
[1736461674175,0.00014766,92246.0,92245.0,0.216813]
[1736461674380,0.00014766,92246.0,92245.0,0.296613]
[1736461674735,0.00114766,92246.0,92245.0,0.296613]
[1736461676027,0.00114766,92246.0,92213.0,0.13135116]
[1736461676028,0.00105346,92246.0,92226.0,0.125]
[1736461676241,0.216813,92245.0,92228.0,0.216853]
[1736461676466,0.216813,92245.0,92227.0,0.10429976]
[1736461676667,0.433627,92245.0,92229.0,0.21685]
[1736461676889,5.346e-05,92246.0,92229.0,0.21685]
[1736461677089,5.346e-05,92246.0,92232.0,0.0798]
[1736461677249,5.346e-05,92246.0,92233.0,0.216841]
[1736461677447,0.003,92245.0,92233.0,0.216841]
[1736461677762,0.217813,92245.0,92233.0,0.433683]
[1736461678312,0.216813,92245.0,92233.0,0.433683]
[1736461678713,0.00405346,92246.0,92234.0,0.216839]
[1736461678916,0.00405346,92246.0,92244.0,0.0798]
[1736461679126,0.00405346,92246.0,92245.0,0.216813]
[1736461679326,5.346e-05,92246.0,92245.0,0.20781298]
[1736461680690,0.00105346,92246.0,92245.0,0.20781298]
[1736461680886,0.00105346,92246.0,92245.0,0.21081298]
[1736461681134,5.346e-05,92246.0,92245.0,0.20781298]
[1736461681581,5.346e-05,92246.0,92245.0,0.20881298]
[1736461682644,5.346e-05,92246.0,92245.0,0.20781298]
[1736461683899,5.346e-05,92246.0,92245.0,0.21181298]
[1736461684104,5.346e-05,92246.0,92245.0,0.19981296]
[1736461684443,5.346e-05,92246.0,92245.0,0.20281296]
[1736461684888,5.346e-05,92246.0,92245.0,0.20481296]
[1736461686694,5.346e-05,92246.0,92245.0,0.20081296]
[1736461686896,5.346e-05,92246.0,92245.0,0.27875846]
[1736461687122,5.346e-05,92246.0,92245.0,0.27975846]
[1736461687355,5.346e-05,92246.0,92245.0,0.20381296]
[1736461689016,5.346e-05,92246.0,92245.0,0.19481294]
[1736461690557,5.346e-05,92246.0,92245.0,0.2991127]
[1736461690883,5.346e-05,92246.0,92245.0,0.3784127]
[1736461691523,5.346e-05,92246.0,92245.0,0.3774127]
[1736461691733,5.346e-05,92246.0,92245.0,0.3734127]
[1736461692074,5.346e-05,92246.0,92245.0,0.3754127]
[1736461693121,5.346e-05,92246.0,92245.0,0.3734127]
[1736461693320,5.346e-05,92246.0,92245.0,0.3764127]
[1736461693762,0.00105346,92246.0,92245.0,0.3824127]
[1736461693920,0.00105346,92246.0,92245.0,0.37341268]
[1736461694110,5.346e-05,92246.0,92245.0,0.36741268]
[1736461694311,0.00105346,92246.0,92245.0,0.37541268]
[1736461699046,0.00105346,92246.0,92245.0,0.36641266]
[1736461702109,0.00105346,92246.0,92245.0,0.2621129]
[1736461703306,0.08901599,92260.0,92245.0,0.0903]
[1736461703517,0.08901599,92260.0,92252.0,0.216797]
[1736461704055,0.216806,92248.0,92245.0,0.00199998]
[1736461704218,0.216806,92248.0,92234.0,0.216839]
[1736461704420,0.08901599,92244.0,92234.0,0.216839]
[1736461704657,0.08901599,92244.0,92234.0,0.21698666]
[1736461705207,0.15,92243.0,92235.0,0.216837]
[1736461705415,0.366818,92243.0,92234.0,0.00014766]
[1736461705637,0.15,92243.0,92234.0,0.00014766]
[1736461706098,0.15,92240.0,92234.0,0.00014766]
[1736461706737,0.433656,92239.0,92234.0,0.00014766]
[1736461706944,0.15,92236.0,92234.0,0.00014766]
[1736461707562,0.216837,92235.0,92234.0,0.00014766]
[1736461709012,0.216837,92235.0,92223.0,0.216864]
[1736461709013,0.216837,92235.0,92223.0,0.20801164]
[1736461709201,0.08901599,92233.0,92223.0,0.20801164]
[1736461710426,0.216844,92232.0,92223.0,0.20801164]
[1736461710846,0.433724,92225.0,92209.0,0.216898]
[1736461711052,0.08901599,92219.0,92209.0,0.216898]
[1736461711728,0.08901599,92220.0,92209.0,0.216898]
[1736461712173,0.15,92221.0,92209.0,0.216898]
[1736461712385,0.001,92219.0,92209.0,0.216898]
[1736461712795,0.216863,92224.0,92201.0,0.0766]
[1736461712796,0.023,92229.0,92201.0,0.0766]
[1736461713002,0.4,92425.0,92204.0,0.216909]
[1736461713003,0.17803198,92220.0,92204.0,0.216909]
[1736461713405,0.216875,92219.0,92204.0,0.216909]
[1736461714044,0.216875,92219.0,92204.0,0.20807918]
[1736461715094,0.15,92218.0,92204.0,0.42498818]
[1736461715298,0.15,92218.0,92201.0,0.0766]
[1736461715501,0.15,92218.0,92210.0,0.216894]
[1736461716396,0.15,92221.0,92210.0,0.216894]
[1736461717191,0.15,92221.0,92214.0,0.216884]
[1736461717480,0.02404094,92221.0,92214.0,0.216884]
[1736461717631,0.15,92225.0,92214.0,0.216884]
[1736461718055,0.216848,92231.0,92218.0,0.216875]
[1736461718258,0.15,92230.0,92218.0,0.216875]
[1736461718499,0.001,92221.0,92218.0,0.216875]
[1736461718692,0.15,92230.0,92220.0,0.216872]
[1736461718893,0.001,92225.0,92220.0,0.216872]
[1736461719073,0.004,92225.0,92220.0,0.20787198]
[1736461719440,0.003,92225.0,92220.0,0.20787198]
[1736461719997,0.003,92225.0,92219.0,0.082]
[1736461720211,0.003,92225.0,92222.0,0.216867]
[1736461720774,0.0251268,92235.0,92227.0,0.216855]
[1736461721610,0.0251268,92235.0,92228.0,0.0809]
[1736461721810,0.0251268,92235.0,92232.0,0.216842]
[1736461722512,0.0051013,92235.0,92234.0,0.216839]
[1736461722757,0.0061013,92235.0,92234.0,0.216839]
[1736461723235,0.0051013,92235.0,92234.0,0.300039]
[1736461723720,0.0011013,92235.0,92234.0,0.48248216]
[1736461723969,0.0021013,92235.0,92234.0,0.48248216]
[1736461724203,0.0021013,92235.0,92234.0,0.47348214]
[1736461724802,0.0001013,92235.0,92234.0,0.47348214]
[1736461725014,0.0011013,92235.0,92234.0,0.48048214]
[1736461725223,0.0011013,92235.0,92234.0,0.48148214]
[1736461725422,0.0001013,92235.0,92234.0,0.51948214]
[1736461725619,0.0011013,92235.0,92234.0,0.52648214]
[1736461726391,0.0011013,92235.0,92234.0,0.52548214]
[1736461726528,0.0011013,92235.0,92234.0,0.52748214]
[1736461726933,0.0001013,92235.0,92234.0,0.52048214]
[1736461727331,0.0011013,92235.0,92234.0,0.52848214]
[1736461727543,0.0001013,92235.0,92234.0,0.52048214]
[1736461727941,0.0011013,92235.0,92234.0,0.52748214]
[1736461728430,0.0011013,92235.0,92234.0,0.53248214]
[1736461729135,0.0011013,92235.0,92234.0,0.52348212]
[1736461732132,0.0011013,92235.0,92234.0,0.54853223]
[1736461732343,3e-07,92235.0,92234.0,0.64853223]
[1736461734105,3e-07,92235.0,92234.0,0.63953221]
[1736461734654,3e-07,92235.0,92234.0,0.53953221]
[1736461734862,3e-07,92235.0,92234.0,0.63953221]
[1736461736699,3e-07,92235.0,92234.0,0.64785221]
[1736461736926,8.51e-05,92267.0,92266.0,0.216764]
[1736461737126,0.00023274,92267.0,92266.0,0.40426376]
[1736461738286,0.00123274,92267.0,92266.0,0.40426376]
[1736461739070,0.00123274,92267.0,92266.0,0.39826374]
[1736461739720,0.00123274,92267.0,92266.0,0.39526374]
[1736461739872,0.00123274,92267.0,92266.0,0.48270451]
[1736461740087,0.00023274,92267.0,92266.0,0.48270451]
[1736461740287,0.00023274,92267.0,92266.0,0.49070451]
[1736461740689,0.00023274,92267.0,92266.0,0.48270451]
[1736461741135,0.00023274,92267.0,92266.0,0.48470451]
[1736461741344,0.00023274,92267.0,92266.0,0.49270451]
[1736461742018,0.00023274,92267.0,92266.0,0.48270451]
[1736461742476,0.00023274,92267.0,92266.0,0.48470451]
[1736461743569,0.00023274,92267.0,92266.0,0.40626374]
[1736461744172,0.00023274,92267.0,92266.0,0.39726372]
[1736461749077,0.00023274,92267.0,92266.0,0.3882637]
[1736461749689,0.00014096,92267.0,92266.0,0.3882637]
[1736461750664,0.00014096,92267.0,92266.0,0.3965437]
[1736461750880,0.00014096,92267.0,92266.0,0.49659532]
[1736461752711,0.00014096,92267.0,92266.0,0.3965437]
[1736461754042,0.00014096,92267.0,92266.0,0.38754368]
[1736461755638,0.15,92304.0,92297.0,0.21669]
[1736461755890,0.15011737,92304.0,92297.0,0.21669]
[1736461756091,0.00288469,92303.0,92293.0,0.216698]
[1736461756483,0.00288469,92303.0,92297.0,0.21669]
[1736461757355,0.00288469,92303.0,92297.0,0.02357682]
[1736461757563,0.00288469,92303.0,92302.0,0.21668]
[1736461757738,0.00388469,92303.0,92302.0,0.21668]
[1736461757945,0.001,92303.0,92302.0,0.21668]
[1736461758352,0.00011737,92304.0,92302.0,0.21668]
[1736461758742,0.00011737,92304.0,92302.0,0.21768]
[1736461758958,0.00011737,92304.0,92302.0,0.20867998]
[1736461759425,0.00011737,92304.0,92302.0,0.40524194]
[1736461759951,0.00011737,92304.0,92302.0,0.40424194]
[1736461760380,0.00011737,92304.0,92302.0,0.40524194]
[1736461761404,0.00011737,92304.0,92303.0,0.15068304]
[1736461762186,0.00011737,92304.0,92303.0,0.14959976]
[1736461762695,0.00011737,92304.0,92303.0,0.15259976]
[1736461762939,0.00011737,92304.0,92303.0,0.180839]
[1736461763539,0.00011737,92304.0,92303.0,0.188839]
[1736461763974,0.00011737,92304.0,92303.0,0.17983898]
[1736461765759,0.00011737,92304.0,92303.0,0.008]
[1736461765950,0.00011737,92304.0,92303.0,0.011]
[1736461766310,0.00011737,92304.0,92302.0,0.20767998]
[1736461766533,0.00011737,92304.0,92303.0,0.009]
[1736461766737,0.00011737,92304.0,92302.0,0.20767998]
[1736461767329,0.00011737,92304.0,92303.0,0.008]
[1736461767530,0.00011737,92304.0,92302.0,0.20767998]
[1736461767732,0.00011737,92304.0,92303.0,0.004]
[1736461767865,0.00011737,92304.0,92303.0,0.003]
[1736461768465,0.00011737,92304.0,92302.0,0.21567998]
[1736461768648,0.00011737,92304.0,92302.0,0.21867998]
[1736461769006,0.00011737,92304.0,92302.0,0.20667996]
[1736461769809,0.00011737,92304.0,92302.0,0.19867996]
[1736461769986,0.00011737,92304.0,92303.0,0.005]
[1736461770215,0.00011737,92304.0,92303.0,0.001]
[1736461771302,0.00011737,92304.0,92303.0,0.004]
[1736461772086,0.00011737,92304.0,92302.0,0.19867996]
[1736461772299,0.00011737,92304.0,92303.0,0.001]
[1736461772972,0.00011737,92304.0,92302.0,0.19867996]
[1736461773195,0.00011737,92304.0,92303.0,0.001]
[1736461773853,0.00011737,92304.0,92303.0,0.009]
[1736461774058,0.00011737,92304.0,92298.0,0.21668898]
[1736461774259,0.00011737,92304.0,92298.0,0.43337798]
[1736461774490,0.00011737,92304.0,92302.0,0.216679]
[1736461774901,0.00011737,92304.0,92303.0,0.005]
[1736461775281,0.00011737,92304.0,92303.0,0.004]
[1736461775486,0.03103426,92304.0,92303.0,0.004]
[1736461775887,0.00011737,92304.0,92303.0,0.004]
[1736461777054,0.00111737,92304.0,92303.0,0.004]
[1736461777459,0.00011737,92304.0,92298.0,0.21668898]
[1736461777860,0.16240757,92313.0,92298.0,0.21668898]
[1736461778193,0.03431511,92313.0,92303.0,0.001]
[1736461778470,0.03431511,92313.0,92303.0,0.002]
[1736461778713,0.03431511,92313.0,92298.0,0.21668898]
[1736461778896,0.25096911,92313.0,92298.0,0.21668898]
[1736461779158,0.47062311,92313.0,92298.0,0.20768896]
[1736461779433,0.25396911,92313.0,92298.0,0.20768896]
[1736461779841,0.25496911,92313.0,92298.0,0.20768896]
[1736461780250,0.25196911,92313.0,92298.0,0.20768896]
[1736461780581,0.25396911,92313.0,92298.0,0.20768896]
[1736461780787,0.24476911,92313.0,92298.0,0.20768896]
[1736461780970,0.24376911,92313.0,92298.0,0.20768896]
[1736461781123,0.24576911,92313.0,92298.0,0.20768896]
[1736461781319,0.24676911,92313.0,92298.0,0.20768896]
[1736461781551,0.216658,92311.0,92298.0,0.20768896]
[1736461782981,0.217658,92311.0,92298.0,0.20768896]
[1736461783570,0.218658,92311.0,92298.0,0.20768896]
[1736461784345,0.218658,92311.0,92298.0,0.19868894]
[1736461784751,0.216658,92311.0,92298.0,0.19868894]
[1736461785130,0.218658,92311.0,92298.0,0.19868894]
[1736461786426,0.217658,92311.0,92298.0,0.19868894]
[1736461786628,0.216658,92311.0,92298.0,0.19868894]
[1736461786805,0.217658,92311.0,92298.0,0.19868894]
[1736461787709,0.001,92311.0,92300.0,0.0473]
[1736461787953,0.002,92311.0,92306.0,0.216668]
[1736461788144,0.002,92311.0,92308.0,0.216665]
[1736461788353,0.002,92311.0,92310.0,0.216661]
[1736461788713,0.001,92311.0,92310.0,0.216661]
[1736461788917,0.001,92311.0,92310.0,0.20766098]
[1736461789318,0.001,92311.0,92310.0,0.43964334]
[1736461789574,0.15,92330.0,92319.0,0.216639]
[1736461789815,0.15,92330.0,92320.0,0.0775]
[1736461790499,0.02701393,92323.0,92320.0,0.0775]
[1736461791183,0.02701393,92323.0,92320.0,0.0795]
[1736461791401,0.02701393,92323.0,92321.0,0.2462489]
[1736461791846,0.02701393,92323.0,92321.0,0.216635]
[1736461792762,8.51e-05,92323.0,92322.0,0.0473]
[1736461792942,8.51e-05,92323.0,92322.0,0.1231]
[1736461793143,8.51e-05,92323.0,92322.0,0.22739976]
[1736461793929,8.51e-05,92323.0,92322.0,0.22339974]
[1736461794206,8.51e-05,92323.0,92322.0,0.28926711]